Cogmind - Beta 14 @@@ ROGUE MODE // 2025.01.16 @ 19:56:31 Player: Grundleshunts Result: Destroyed by Y-45 Defender with Heavy Assault Rifle Performance ------------- Evolutions (1) 500 Regions Visited (3) 600 Robots Destroyed (26) 130 Value Destroyed (586) 586 Prototype IDs (2) 40 Alien Tech Used (0) 0 Bonus (0) 0 TOTAL SCORE: 1856 Bonus ------- None Cogmind --------- Core Integrity 0/400 Matter 69/300 Energy 100/100 System Corruption 1% Temperature Cool (9) Movement Core (250) Ox4 Location -9/Storage Parts ------- > --- POWER (1) -------- (None) > --- PROPULSION (3) --- (None) > --- UTILITY (3) ------ Medium Storage Unit Hacking Suite > --- WEAPON (2) ------- Autogun > --- INVENTORY (10) --- Advanced Weight Redist. System Advanced Weight Redist. System Advanced Weight Redist. System Visual Processing Unit Improved Terrain Scanner ECM Suite Medium Armor Plating Assault Cannon Assault Cannon Datajack Peak State ------------ > --- POWER ------------ Light Ion Engine > --- PROPULSION ------- Flight Unit Flight Unit Flight Unit > --- UTILITY ---------- Medium Storage Unit Advanced Weight Redist. System Hacking Suite > --- WEAPON ----------- Assault Cannon Assault Cannon > --- INVENTORY -------- Light Treads Improved Terrain Scanner ECM Suite Small Laser Light Assault Rifle Assault Cannon Assault Cannon Datajack [Rating: 18] Favorites ----------- Power Light Ion Engine Engine Light Ion Engine Propulsion Light Treads Treads Light Treads Flight Unit Flight Unit Utility Medium Storage Unit Device Improved Terrain Scanner Storage Medium Storage Unit Hackware Hacking Suite Protection Medium Armor Plating Weapon EM Pulse Gun Energy Gun EM Pulse Gun Ballistic Gun Light Assault Rifle Ballistic Cannon Assault Cannon Build | -11 -10 -9 -9 ------- Run | Yrd Mat Mat Sto Slots Evolved 2 | . . 2 . Power . | . . . . Propulsion 1 | . . 1 . Utility 1 | . . 1 . Weapon . | . . . . Parts Attached 25 | 6 9 9 1 Power 3 | 1 2 . . Engine 3 | 1 2 . . Core . | . . . . Reactor . | . . . . Propulsion 5 | 2 . 3 . Treads 2 | 2 . . . Leg . | . . . . Wheel . | . . . . Hover . | . . . . Flight 3 | . . 3 . Utility 7 | 1 2 4 . Device 2 | . . 2 . Storage 3 | 1 1 1 . Processor . | . . . . Hackware 1 | . . 1 . Protection 1 | . 1 . . Artifact . | . . . . Weapon 10 | 2 5 2 1 Energy Gun 6 | 2 4 . . Energy Cannon . | . . . . Ballistic Gun 2 | . 1 . 1 Ballistic Cannon 2 | . . 2 . Launcher . | . . . . Special Weapon . | . . . . Impact Weapon . | . . . . Slashing Weapon . | . . . . Piercing Weapon . | . . . . Special Melee Weapon . | . . . . Unidentified Prototypes . | . . . . Corrupted Parts 1 | . . 1 . System Corruption 1 | . . 1 . Parts Lost 10 | . 4 1 5 Power 1 | . . 1 . Propulsion 3 | . . . 3 Utility 2 | . 1 . 1 Weapon 4 | . 3 . 1 Highest Loss Streak 6 | . 2 1 6 To Critical Strikes . | . . . . Average Slot Usage (%) 82 | . 95 89 33 Engine 10 | . 14 11 . Treads 19 | . 28 12 . Flight 3 | . . 14 3 Device 2 | . . 11 2 Storage 12 | . 14 11 11 Hackware 4 | . . 11 11 Protection 6 | . 11 . . Energy Gun 16 | . 25 7 . Ballistic Gun 2 | . 1 7 1 Ballistic Cannon 1 | . . 3 3 Peak Build Rating 18 | 6 9 18 15 Average Rating 8 | 5 8 13 8 On Entrance 7 | . 6 7 15 Naked Turns . | . . . . Heaviest Build 27 | 12 27 23 15 Greatest Support 40 | 40 40 40 21 Greatest Overweight (x) 3 | . . 1 3 Average Overweight (x) . | . . . 1 Largest Inventory Capacity 10 | 8 10 10 10 Average Capacity 9 | 7 9 10 10 Most Carried 10 | 3 9 10 10 Average Carried 6 | 2 6 8 10 Final Capacity 10 | 8 10 10 10 Final Carried 10 | 3 9 10 10 Class Distribution -------------------- 91% | Mutant 8% | Scavenger-Mutant Dominant Class ---------------- Mutant | -10/Materials Mutant | -9/Materials Mutant | -9/Storage Resources | -11 -10 -9 -9 ----------- Run | Yrd Mat Mat Sto Matter Collected 336 | 241 91 4 . Remotely . | . . . . Salvage Created 816 | 54 539 . 223 Parts 54 | 5 35 . 14 Haulers Intercepted 1 | . 1 . . Recyclers Shooed 1 | . 1 . . Parts Field Recycled . | . . . . Retrieved Matter . | . . . . Parts Self-Destructed . | . . . . Prevented . | . . . . Kills | -11 -10 -9 -9 ------- Run | Yrd Mat Mat Sto Combat Hostiles Destroyed 17 | . 12 . 5 Guns 12 | . 11 . 1 Cannons 4 | . . . 4 AOE 1 | . 1 . . Classes Destroyed 10 | 1 7 . 2 Worker 1 | . . . 1 Tunneler 2 | 2 . . . Hauler 1 | . 1 . . Recycler 1 | . 1 . . Mechanic 1 | . 1 . . Operator 1 | . 1 . . Watcher 2 | . 1 . 1 Swarmer 6 | . 6 . . Grunt 9 | . 6 . 3 Sentry 2 | . . . 2 Best Kill Streak 5 | 2 5 . 4 Combat Bots Only 4 | . 3 . 4 Max Kills in Single Turn 2 | 1 2 . 1 Gunslinging 1 | . 1 . . Exploded 1 | . 1 . . Melee . | . . . . Uniques/NPCs Destroyed . | . . . . Combat | -11 -10 -9 -9 -------- Run | Yrd Mat Mat Sto Hostile Shots Fired 159 | . 64 16 79 Missed 36 | . 15 4 17 Damage Taken 1637 | . 631 118 888 Core 481 | . 74 30 377 Absorbed by Shields . | . . . . Core Remaining (%) 85 | 100 70 . . Volleys Fired 83 | 4 45 2 32 Largest 2 | 2 2 1 1 Hottest 85 | 80 85 44 44 Shots Fired 124 | 8 82 2 32 Gun 105 | 8 82 . 15 Cannon 19 | . . 2 17 Launcher . | . . . . Special . | . . . . Kinetic 34 | . . 2 32 Thermal 20 | . 20 . . Explosive . | . . . . Electromagnetic 70 | 8 62 . . Robot Hit Streak 8 | 5 8 1 7 Robot Miss Streak 4 | 1 4 1 2 Penetration Max . | . . . . Secondary Targets 2 | . 2 . . Max Gunslinging Chain 1 | . 1 . . Shots Hit Robots 80 | 5 50 1 24 Core Hits 36 | 2 24 . 10 Critical Kills . | . . . . Critical Parts Destroyed . | . . . . Critical Strikes 2 | . 2 . . Corrupt 2 | . 2 . . Melee Attacks . | . . . . Impact . | . . . . Slashing . | . . . . Piercing . | . . . . Sneak Attacks . | . . . . Combat Hostiles . | . . . . Follow-up Attacks . | . . . . Damage Inflicted 1623 | 64 1050 25 484 Guns 907 | 64 684 . 159 Cannons 350 | . . 25 325 Explosions 364 | . 364 . . Melee . | . . . . Ramming 2 | . 2 . . Kinetic 509 | . . 25 484 Thermal 293 | . 293 . . Explosive 159 | . 159 . . Electromagnetic 660 | 64 596 . . Impact . | . . . . Slashing . | . . . . Piercing . | . . . . Highest Corruption 1 | . . 1 1 Average Corruption 1 | . . 1 1 Corruption Purged . | . . . . Corruption Blocked . | . . . . Effects 1 | . . . 1 Message Errors 1 | . . . 1 Overload Shots . | . . . . Overflow Damage 7 | . 7 . . Projectiles . | . . . . Explosions 7 | . 7 . . Melee . | . . . . Knockbacks 2 | . . . 2 Impact . | . . . . Kinetic 2 | . . . 2 Secondary . | . . . . Self-Inflicted Damage 132 | . 132 . . Shots 3 | . 3 . . Rammed 1 | . 1 . . Targets Rammed 1 | . 1 . . Kicked . | . . . . Crushed . | . . . . Highest Temperature 326 | 54 326 19 22 Average Temperature 114 | 33 136 7 6 Received Heat Transfer 633 | . 177 18 438 Effects 3 | . 3 . . Shutdowns 1 | . 1 . . Energy Bleed 1 | . 1 . . Damage (minor) 1 | . 1 . . Siege Activations . | . . . . Robots Corrupted . | . . . . Combat Hostiles . | . . . . Parts Fried 2 | 1 1 . . Impact Corruptions . | . . . . Robots Melted . | . . . . Combat Hostiles . | . . . . Parts Melted . | . . . . Heat Transferred 450 | . 450 . . Parts Sabotaged . | . . . . Parts Stolen . | . . . . Parts Stripped . | . . . . Power Chain Reactions 4 | . 4 . . Alert | -11 -10 -9 -9 ------- Run | Yrd Mat Mat Sto Peak Influence 332 | 10 332 197 188 Initial 92 | . 6 92 78 Average 111 | 7 155 106 135 Maximum Alert Level 1 | . 1 . . Low Security (%) 84 | 100 65 100 100 Level 1 15 | . 34 . . Level 2 . | . . . . Level 3 . | . . . . Level 4 . | . . . . Level 5 . | . . . . High Security . | . . . . Max Security . | . . . . Squads Dispatched 2 | . 1 1 . Investigation 1 | . . 1 . Extermination . | . . . . Reinforcement 1 | . 1 . . Assault . | . . . . Garrison . | . . . . Intercept . | . . . . Searches Triggered . | . . . . Construction Impeded . | . . . . Haulers Reinforced . | . . . . Active Scanning Responses . | . . . . Cargo Convoy Interrupts . | . . . . Stealth | -11 -10 -9 -9 --------- Run | Yrd Mat Mat Sto Distress Signals 2 | . . . 2 Communications Jammed . | . . . . Distress Signals . | . . . . Times Spotted 32 | . 16 7 9 Peak Tracking Total 7 | . 5 4 7 Tactical Retreats 4 | . 3 1 . Traps | -11 -10 -9 -9 ------- Run | Yrd Mat Mat Sto Traps Triggered . | . . . . Indirectly . | . . . . Trap Hack Attempts . | . . . . Triggered . | . . . . Disarmed . | . . . . Reprogrammed . | . . . . Reused . | . . . . Traps Extracted . | . . . . Installed . | . . . . Triggered . | . . . . Machines | -11 -10 -9 -9 ---------- Run | Yrd Mat Mat Sto Machines Disabled 2 | . 2 . . Max in Single Turn 1 | . 1 . . Machines Repaired . | . . . . Machines Dismantled . | . . . . Machines Sabotaged . | . . . . Overloaded Fab Kills . | . . . . Hacking | -11 -10 -9 -9 --------- Run | Yrd Mat Mat Sto Machines Accessed 2 | . . 2 . Terminals 1 | . . 1 . Fabricators . | . . . . Repair Stations . | . . . . Recycling Units . | . . . . Scanalyzers 1 | . . 1 . Garrison Access . | . . . . Total Hacks 8 | . . 8 . Successful 8 | . . 8 . Failed . | . . . . Catastrophic . | . . . . Database Lockouts . | . . . . Manual . | . . . . Terminals 4 | . . 4 . Fabricators . | . . . . Repair Stations . | . . . . Recycling Units . | . . . . Scanalyzers 4 | . . 4 . Garrison Access . | . . . . Terminal Hacks 4 | . . 4 . Record 2 | . . 2 . Prototype ID Bank 1 | . . 1 . Hauler Manifests 1 | . . 1 . Fabricator Hacks . | . . . . Repair Station Hacks . | . . . . Recycling Unit Hacks . | . . . . Scanalyzer 4 | . . 4 . Insert Component 2 | . . 2 . Analyze 2 | . . 2 . Garrison Access Hacks . | . . . . Unauthorized Hacks . | . . . . Terminals . | . . . . Fabricators . | . . . . Repair Stations . | . . . . Recycling Units . | . . . . Scanalyzers . | . . . . Garrison Access . | . . . . Data Cores Recovered . | . . . . Used . | . . . . Hacking Detections 1 | . . 1 . Full Trace Events 1 | . . 1 . Feedback Events . | . . . . Feedback Blocked . | . . . . Robot Schematics Acquired . | . . . . Robots Built . | . . . . Authchips . | . . . . Time . | . . . . Total Robot Build Rating . | . . . . Part Schematics Acquired 2 | . . 2 . Parts Built . | . . . . Authchips . | . . . . Time . | . . . . Total Part Build Rating . | . . . . Parts Repaired . | . . . . Time . | . . . . Parts Recycled . | . . . . Recycled Matter . | . . . . Retrieved Matter . | . . . . Retrieved Components . | . . . . Parts Scanalyzed 2 | . . 2 . Part Schematics Acquired 2 | . . 2 . Parts Damaged . | . . . . Bothacking | -11 -10 -9 -9 ------------ Run | Yrd Mat Mat Sto Used RIF Installer . | . . . . Robots Hacked . | . . . . Non-combat . | . . . . Combat . | . . . . Robot Hacks Applied . | . . . . Relay Couplers Released . | . . . . Fabnet Peak Effective % . | . . . . Robots Rewired . | . . . . Allies Hacked . | . . . . Hacks Repelled . | . . . . Allies | -11 -10 -9 -9 -------- Run | Yrd Mat Mat Sto Total Allies . | . . . . Largest Group . | . . . . Highest-Rated Group . | . . . . Highest-Rated Ally . | . . . . Total Orders . | . . . . Ally Attacks . | . . . . Total Damage . | . . . . Kills . | . . . . Allies Corrupted . | . . . . Allies Melted . | . . . . Intel | -11 -10 -9 -9 ------- Run | Yrd Mat Mat Sto Robot Analysis Total . | . . . . Derelict Logs Recovered . | . . . . Drone Launches . | . . . . Drone Recoveries . | . . . . Exploration | -11 -10 -9 -9 ------------- Run | Yrd Mat Mat Sto Turns Passed 1185 | 253 538 212 182 Spaces Moved 641 | 135 222 200 84 Core 51 | 3 . . 48 Treads 422 | 132 222 68 . Legs . | . . . . Wheels . | . . . . Hover . | . . . . Flight 168 | . . 132 36 Fastest Speed 34 | 50 160 34 34 Average Speed 132 | 157 160 80 142 Slowest Speed 200 | 160 160 160 200 Overloaded Moves . | . . . . Propulsion Burnouts . | . . . . Robots Hopped 3 | . . 3 . Cave-ins Triggered . | . . . . Exploration Rate (%) 24 | 7 39 24 27 Regions Visited 3 Branch Regions 1 Pre-discovered Areas . | . . . . Known Exits Taken . | . . . . Unknown Exits Taken 3 | 1 1 1 . Scrap Searched . | . . . . Spaces Dug . | . . . . Terrain Destroyed 29 | . 26 . 3 Melee . | . . . . Projectile 3 | . . . 3 AOE 26 | . 26 . . Terrain Rammed . | . . . . Walls Destroyed . | . . . . Machines Disabled . | . . . . Actions | -11 -10 -9 -9 --------- Run | Yrd Mat Mat Sto Total 852 | 164 322 249 117 Wait 65 | 17 29 19 . Move 632 | 134 221 193 84 Hop 3 | . . 3 . Pick Up 26 | 3 11 12 . Fast Attach 9 | 6 2 . 1 Attach 6 | . 2 4 . Detach 2 | . . 2 . Swap 10 | . 5 5 . Drop 15 | . 6 9 . Fire 83 | 4 45 2 32 Melee . | . . . . Ram . | . . . . Kick . | . . . . Crush 1 | . 1 . . Escape Stasis . | . . . . Rewire . | . . . . Trap . | . . . . Miscellaneous . | . . . . Route ------- -11/Scrapyard -10/Materials -9/Materials -9/Storage History --------- Turn | Location | Event 8 | -11/Scrapyard | Discovered new exit (range 14) 254 | -11/Scrapyard | Entered Materials 339 | -10/Materials | Build established: Mutant 590 | -10/Materials | Discovered new exit (range 14) 792 | -10/Materials | Entered another Materials area 792 | -9/Materials | Evolved 2 slots: Propulsion x1, Utility x1 999 | -9/Materials | Discovered new exit (range 7) 1004 | -9/Materials | Entered Storage 1093 | -9/Storage | Lost 6 parts (1p3n1u1w) 1102 | -9/Storage | Core integrity fell below 50% 1163 | -9/Storage | Core integrity fell below 20% 1186 | -9/Storage | Destroyed by Y-45 Defender with Heavy Assault Rifle Last Messages --------------- G-47 Trooper knocked back. G-47 Trooper destroyed. Critical hit (Burn: +37). Assault Cannon destroyed. K-01 Serf collects debris. Critical hit (Burn: +37). U-05 Engineer builds a Wall. K-01 Serf collects debris. Critical hit (Burn: +37). K-01 Serf collects debris. C6 TA=AG8|FJD>BP |KW Critical hit (Burn: +37). Acquired Autogun. Critical hit (Burn: +37). W-16 Scout sends out distress signal. Y-45 Defender destroyed. Critical hit (Burn: +37). W-16 Scout destroyed. R-06 Scavenger collects Imp. Ion Engine. R-06 Scavenger collects Heat Sink. Map ----- +----------------------------------------------------+ | ??????"T """# =[#?????????????????????? | | ??????"" % + !%#?????????????????????? | | ??????"" """# %*#?????????????????????? | | ???????# ""?###%#?????????????????????? | | ???????# "????#[#?????????????????????? | | ??????????????????# #?????????????????????? | | ????????########### #?????????????????????? | | ????????# # #?????????????????????? | | ????????# # ##????????????????????? | | ????????# # "#????????????????????? | | ????????# # ########??????????????? | | ????????###+##/#### #??????????? | | ??????????# ####+########??????????????? | | ??????????# # #????????????????? | | ????#######+## # #????????????????? | | ????# # + #????????????????? | | ????# # # #????????????????? | | ????# """" # ############# #??????????? | | ????# ""??" # ?????????? | | ????# ""???" / ?????????? | | ????# "???"" # % r ?????????? | | ????# "??"" ###+#Y##########?????????????? | | ????# """" #= #??????????????????? | | ????# #!% #??????????????????? | | ????########## #??????????????????? | | ?????????????# [[@ ! #??????????????????? | | ?????????????# [[ #??????????????????? | | ?????????????# [[ #??????????????????? | | ?????????????# #??????????????????? | | ?????????????# """T""" #??????????????????? | | ?????????????###########??????????????????? | | ??????????????????????????????????????????? | | ??????????????????????????????????????????? | | ??????????????????????????????????????????? | | ??????????????????????????????????????????? | | ??????????????????????????????????????????? | | ??????????????????????????????????????????? | | ??????????????????????????????????????????? | | ??????????????????????????????????????????? | | ??????????????????????????????????????????? | | ??????????????????????????????????????????? | | ??????????????????????????????????????????? | | ??????????????????????????????????????????? | | | | | | | | | | | | | | | +----------------------------------------------------+ Best States ------------- Heat Dissipation 28 Energy Generation 10 Energy Capacity 250 Matter Stores 300 Matter Capacity 300 Sight Range 16 Terrain Scan Range 16 Terrain Scan Density 10 Additional Mass Support 9 Armor Coverage 225 Evasion (%) 63 Recoil Reduction 2 Offensive Hacking 10 Item Schematics ----------------- ECM Suite | -9/Materials | Scanalyzed Adv. Weight Redist. System | -9/Materials | Scanalyzed Robot Schematics ------------------ None Fabricated ------------ Nothing Alien Tech Used ----------------- None Achievements -------------- Shopping List Challenges ------------ None Game ------ Seed RainbowGrapheneTriangulator Manual? 0 Play Time 00:35:30 Cumulative 3.9 hours Start 2025.01.16 @ 19:09:37 End 2025.01.16 @ 19:56:31 Sessions 1 Manual Loads 0 Difficulty Rogue Special Mode None Game No. 4 Rogue 4 Adventurer 0 Explorer 0 Win Type - Total 0 Types 0/0/0/0/0/0/0/0/0 Lore% 1 Gallery% 4 Achievement% 5 Wizard Run 0 Options --------- Layout 1 ASCII 0 Keyboard 0 Movement Numpad Keybinds 0 Fullscreen 2 Font 48/Smallcaps Map View 50x35 Zoom Use 0% Tactical HUD 0 Map Filters NONE Filters NONE Steam 1 RUN: dad085a6-2dcd-49db-9f55-9abc0d3c9fd4